[Event "Top 12 Féminin 2026"]
[Site "Asnières-sur-Seine, France"]
[Date "2026.05.16"]
[Round "4.6"]
[White "Bosc, Seraphina"]
[Black "Guichard, Pauline"]
[Result "1/2-1/2"]
[TimeControl "1h30 / 40 moves + 30m + 30sec/move"]
[WhiteTitle "WIM"]
[BlackTitle "IM"]
[WhiteFideId "-"]
[BlackFideId "-"]
[WhiteElo "2230"]
[BlackElo "2333"]

1. b3 {[%clk 01:30:55]} {[%emt 00:00:05]} e5 {[%clk 01:30:18]} {[%emt
00:00:42]} 2. Bb2 {[%clk 01:31:11]} {[%emt 00:00:14]} Nc6 {[%clk 01:29:57]}
{[%emt 00:00:50]} 3. c4 {[%clk 01:30:55]} {[%emt 00:00:47]} Nf6 {[%clk
01:28:46]} {[%emt 00:01:40]} 4. e3 {[%clk 01:31:19]} {[%emt 00:00:06]} d5
{[%clk 01:28:27]} {[%emt 00:00:49]} 5. cxd5 {[%clk 01:31:43]} {[%emt 00:00:06]}
Nxd5 {[%clk 01:28:41]} {[%emt 00:00:16]} 6. a3 {[%clk 01:31:24]} {[%emt
00:00:50]} Bd6 {[%clk 01:26:57]} {[%emt 00:02:13]} 7. d3 {[%clk 01:30:35]}
{[%emt 00:01:20]} Qe7 {[%clk 01:23:45]} {[%emt 00:03:42]} 8. Nd2 {[%clk
01:30:01]} {[%emt 00:01:04]} f5 {[%clk 01:21:13]} {[%emt 00:03:02]} 9. Ngf3
{[%clk 01:29:21]} {[%emt 00:01:10]} g5 {[%clk 01:02:20]} {[%emt 00:19:22]} 10.
Nc4 {[%clk 01:20:14]} {[%emt 00:09:37]} Bd7 {[%clk 00:59:18]} {[%emt 00:03:33]}
11. d4 {[%clk 01:18:36]} {[%emt 00:02:07]} e4 {[%clk 00:56:16]} {[%emt
00:03:31]} 12. Nfe5 {[%clk 01:18:44]} {[%emt 00:00:22]} O-O-O {[%clk 00:45:09]}
{[%emt 00:11:37]} 13. Nxd7 {[%clk 01:04:47]} {[%emt 00:14:27]} Rxd7 {[%clk
00:44:31]} {[%emt 00:01:09]} 14. b4 {[%clk 01:01:56]} {[%emt 00:03:22]} Rf8
{[%clk 00:39:31]} {[%emt 00:05:29]} 15. Be2 {[%clk 00:58:55]} {[%emt 00:03:31]}
Kb8 {[%clk 00:34:18]} {[%emt 00:05:43]} 16. b5 {[%clk 00:58:03]} {[%emt
00:01:22]} Nd8 {[%clk 00:34:40]} {[%emt 00:00:08]} 17. Qc2 {[%clk 00:53:27]}
{[%emt 00:05:06]} Qe6 {[%clk 00:32:13]} {[%emt 00:02:57]} 18. h3 {[%clk
00:42:02]} {[%emt 00:11:55]} g4 {[%clk 00:27:58]} {[%emt 00:04:46]} 19. g3
{[%clk 00:25:27]} {[%emt 00:17:05]} h5 {[%clk 00:25:34]} {[%emt 00:02:53]} 20.
h4 {[%clk 00:22:58]} {[%emt 00:02:58]} Rg7 {[%clk 00:24:00]} {[%emt 00:02:04]}
21. Nxd6 {[%clk 00:18:35]} {[%emt 00:04:54]} Qxd6 {[%clk 00:23:12]} {[%emt
00:01:17]} 22. Qc5 {[%clk 00:17:48]} {[%emt 00:01:18]} Rd7 {[%clk 00:20:51]}
{[%emt 00:02:51]} 23. Qxd6 {[%clk 00:17:53]} {[%emt 00:00:25]} Rxd6 {[%clk
00:19:37]} {[%emt 00:01:44]} 24. a4 {[%clk 00:16:55]} {[%emt 00:01:28]} Rd7
{[%clk 00:19:25]} {[%emt 00:00:41]} 25. O-O {[%clk 00:15:29]} {[%emt 00:01:56]}
b6 {[%clk 00:11:54]} {[%emt 00:08:01]} 26. Ba3 {[%clk 00:12:35]} {[%emt
00:03:24]} Rf6 {[%clk 00:11:00]} {[%emt 00:01:23]} 27. Rac1 {[%clk 00:11:47]}
{[%emt 00:01:18]} Nb7 {[%clk 00:10:55]} {[%emt 00:00:35]} 28. Bc4 {[%clk
00:10:39]} {[%emt 00:01:39]} Na5 {[%clk 00:10:19]} {[%emt 00:01:05]} 29. Ba2
{[%clk 00:10:13]} {[%emt 00:00:56]} a6 {[%clk 00:09:22]} {[%emt 00:01:27]} 30.
Rc2 {[%clk 00:08:33]} {[%emt 00:02:10]} axb5 {[%clk 00:09:45]} {[%emt
00:00:06]} 31. axb5 {[%clk 00:08:59]} {[%emt 00:00:04]} Kb7 {[%clk 00:07:18]}
{[%emt 00:02:58]} 32. Rb1 {[%clk 00:06:39]} {[%emt 00:02:50]} Rh6 {[%clk
00:00:46]} {[%emt 00:07:01]} 33. Kg2 {[%clk 00:04:15]} {[%emt 00:02:54]} Rh8
{[%clk 00:00:37]} {[%emt 00:00:39]} 34. Rbc1 {[%clk 00:04:04]} {[%emt
00:00:42]} Rc8 {[%clk 00:00:48]} {[%emt 00:00:18]} 35. Rc6 {[%clk 00:03:17]}
{[%emt 00:01:17]} Rh8 {[%clk 00:00:32]} {[%emt 00:00:47]} 36. Bxd5 {[%clk
00:02:41]} {[%emt 00:01:07]} Rxd5 {[%clk 00:01:00]} {[%emt 00:00:02]} 37. Rxc7+
{[%clk 00:03:04]} {[%emt 00:00:07]} Kb8 {[%clk 00:01:01]} {[%emt 00:00:29]} 38.
Rf7 {[%clk 00:02:22]} {[%emt 00:01:11]} Rc8 {[%clk 00:01:14]} {[%emt 00:00:17]}
39. Rxc8+ {[%clk 00:02:04]} {[%emt 00:00:48]} Kxc8 {[%clk 00:01:41]} {[%emt
00:00:03]} 40. Rh7 {[%clk 00:01:57]} {[%emt 00:00:37]} Nc4 {[%clk 00:01:54]}
{[%emt 00:00:18]} 41. Bc1 {[%clk 00:23:26]} {[%emt 00:09:01]} Rxb5 {[%clk
00:30:26]} {[%emt 00:01:58]} 42. Rxh5 {[%clk 00:23:48]} {[%emt 00:00:07]} Rb1
{[%clk 00:29:38]} {[%emt 00:01:17]} 43. Rxf5 {[%clk 00:22:24]} {[%emt
00:01:55]} Rxc1 {[%clk 00:29:42]} {[%emt 00:00:26]} 44. Rf4 {[%clk 00:21:39]}
{[%emt 00:01:14]} Nd6 {[%clk 00:14:19]} {[%emt 00:15:53]} 45. h5 {[%clk
00:21:49]} {[%emt 00:00:21]} Kd7 {[%clk 00:12:30]} {[%emt 00:02:19]} 46. Rxg4
{[%clk 00:21:50]} {[%emt 00:00:28]} Rc8 {[%clk 00:09:45]} {[%emt 00:03:15]} 47.
d5 {[%clk 00:21:33]} {[%emt 00:00:47]} Ke7 {[%clk 00:06:27]} {[%emt 00:03:48]}
48. Rg6 {[%clk 00:08:44]} {[%emt 00:13:19]} b5 {[%clk 00:04:05]} {[%emt
00:02:52]} 49. h6 {[%clk 00:08:36]} {[%emt 00:00:39]} b4 {[%clk 00:02:29]}
{[%emt 00:02:06]} 50. Re6+ {[%clk 00:08:15]} {[%emt 00:00:51]} Kd7 {[%clk
00:02:44]} {[%emt 00:00:15]} 51. Rg6 {[%clk 00:08:09]} {[%emt 00:00:36]} Ke7
{[%clk 00:02:18]} {[%emt 00:00:56]} 52. Re6+ {[%clk 00:06:46]} {[%emt
00:01:53]} Kd7 {[%clk 00:02:44]} {[%emt 00:00:04]} 53. Rg6 {[%clk 00:06:30]}
{[%emt 00:00:45]} Ke7 {[%clk 00:03:00]} {[%emt 00:00:15]} 54. Re6+ {[%emt
00:00:15]} Rh8 {[%emt 00:01:59]} 55. Rg6 {[%emt 00:00:01]} Kf6 {[%emt
00:00:11]} 56. Rg7 Ke7 {[%emt 00:00:13]} 57. Rg6 {[%emt 00:00:01]} b3 {[%emt
00:00:09]} 58. g4 Kf6 {[%emt 00:00:15]} 59. Rg7 Ke7 {[%emt 00:00:32]} 60. Rg6
Kd7 {[%emt 00:00:01]} 1/2-1/2

[Event "Top 12 Féminin 2026"]
[Site "Asnières-sur-Seine, France"]
[Date "2026.05.16"]
[Round "4.7"]
[White "Iglesias, Yosha"]
[Black "Hernandez, Lara"]
[Result "1-0"]
[TimeControl "1h30 / 40 moves + 30m + 30sec/move"]
[WhiteTitle "FM"]
[BlackTitle "WCM"]
[WhiteFideId "-"]
[BlackFideId "-"]
[WhiteElo "2325"]
[BlackElo "2014"]

1. d4 {[%clk 01:30:56]} {[%emt 00:00:02]} Nf6 {[%clk 01:30:54]} {[%emt
00:00:07]} 2. Bf4 {[%clk 01:31:11]} {[%emt 00:00:14]} d5 {[%clk 01:30:22]}
{[%emt 00:01:03]} 3. e3 {[%clk 01:31:30]} {[%emt 00:00:11]} c5 {[%clk
01:30:44]} {[%emt 00:00:09]} 4. c3 {[%clk 01:31:19]} {[%emt 00:00:40]} Nc6
{[%clk 01:31:07]} {[%emt 00:00:07]} 5. Nd2 {[%clk 01:31:07]} {[%emt 00:00:41]}
Bf5 {[%clk 01:29:48]} {[%emt 00:01:50]} 6. Qb3 {[%clk 01:28:25]} {[%emt
00:03:11]} Qd7 {[%clk 01:29:55]} {[%emt 00:00:23]} 7. Ngf3 {[%clk 01:28:06]}
{[%emt 00:00:48]} c4 {[%clk 01:30:09]} {[%emt 00:00:17]} 8. Qd1 {[%clk
01:28:25]} {[%emt 00:00:10]} e6 {[%clk 01:25:41]} {[%emt 00:04:59]} 9. Be2
{[%clk 01:28:41]} {[%emt 00:00:13]} Be7 {[%clk 01:23:50]} {[%emt 00:02:22]} 10.
O-O {[%clk 01:19:58]} {[%emt 00:09:13]} O-O {[%clk 01:17:59]} {[%emt 00:06:22]}
11. Ne5 {[%clk 01:19:44]} {[%emt 00:00:43]} Nxe5 {[%clk 01:13:38]} {[%emt
00:04:52]} 12. Bxe5 {[%clk 01:15:51]} {[%emt 00:04:22]} Ne4 {[%clk 01:04:10]}
{[%emt 00:09:58]} 13. Nxe4 {[%clk 00:45:45]} {[%emt 00:30:35]} Bxe4 {[%clk
01:04:20]} {[%emt 00:00:21]} 14. Re1 {[%clk 00:46:10]} {[%emt 00:00:04]} f6
{[%clk 00:55:05]} {[%emt 00:09:45]} 15. Bg3 {[%clk 00:46:17]} {[%emt 00:00:22]}
b5 {[%clk 00:53:20]} {[%emt 00:02:16]} 16. f3 {[%clk 00:36:24]} {[%emt
00:10:23]} Bg6 {[%clk 00:53:33]} {[%emt 00:00:18]} 17. e4 {[%clk 00:36:30]}
{[%emt 00:00:23]} Rfe8 {[%clk 00:52:15]} {[%emt 00:01:48]} 18. Qd2 {[%clk
00:32:04]} {[%emt 00:04:55]} Bd6 {[%clk 00:49:35]} {[%emt 00:03:11]} 19. e5
{[%clk 00:30:37]} {[%emt 00:01:57]} fxe5 {[%clk 00:48:06]} {[%emt 00:02:00]} 20.
Bxe5 {[%clk 00:30:54]} {[%emt 00:00:12]} Bxe5 {[%clk 00:47:59]} {[%emt
00:00:38]} 21. dxe5 {[%clk 00:31:19]} {[%emt 00:00:05]} a6 {[%clk 00:44:59]}
{[%emt 00:03:30]} 22. Qd4 {[%clk 00:29:12]} {[%emt 00:02:37]} Qa7 {[%clk
00:43:13]} {[%emt 00:02:16]} 23. Rad1 {[%clk 00:28:37]} {[%emt 00:01:04]} Qxd4+
{[%clk 00:41:50]} {[%emt 00:01:54]} 24. Rxd4 {[%clk 00:28:46]} {[%emt
00:00:20]} Kf7 {[%clk 00:39:33]} {[%emt 00:02:47]} 25. h4 {[%clk 00:25:27]}
{[%emt 00:03:49]} Ke7 {[%clk 00:37:31]} {[%emt 00:02:33]} 26. Kf2 {[%clk
00:25:49]} {[%emt 00:00:07]} Rf8 {[%clk 00:37:04]} {[%emt 00:00:57]} 27. Rh1
{[%clk 00:25:36]} {[%emt 00:00:43]} h5 {[%clk 00:35:39]} {[%emt 00:01:55]} 28.
Rh3 {[%clk 00:19:17]} {[%emt 00:06:49]} Bb1 {[%clk 00:33:12]} {[%emt 00:02:57]}
29. Rg3 {[%clk 00:18:50]} {[%emt 00:00:56]} Rf7 {[%clk 00:28:31]} {[%emt
00:05:12]} 30. Ke3 {[%clk 00:18:04]} {[%emt 00:01:16]} Rg8 {[%clk 00:19:54]}
{[%emt 00:09:08]} 31. Rd1 {[%clk 00:12:17]} {[%emt 00:06:16]} Bc2 {[%clk
00:17:39]} {[%emt 00:02:45]} 32. Rc1 {[%clk 00:12:30]} {[%emt 00:00:17]} Bf5
{[%clk 00:15:34]} {[%emt 00:02:35]} 33. Rg5 {[%clk 00:12:13]} {[%emt 00:00:48]}
g6 {[%clk 00:14:06]} {[%emt 00:01:59]} 34. g4 {[%clk 00:07:57]} {[%emt
00:04:45]} hxg4 {[%clk 00:14:19]} {[%emt 00:00:17]} 35. fxg4 {[%clk 00:08:23]}
{[%emt 00:00:04]} Be4 {[%clk 00:14:17]} {[%emt 00:00:33]} 36. Rf1 {[%clk
00:08:25]} {[%emt 00:00:26]} Rxf1 {[%clk 00:11:08]} {[%emt 00:03:40]} 37. Bxf1
{[%clk 00:08:51]} {[%emt 00:00:04]} Rf8 {[%clk 00:09:31]} {[%emt 00:02:08]} 38.
Be2 {[%clk 00:09:08]} {[%emt 00:00:13]} Kf7 {[%clk 00:08:56]} {[%emt 00:01:04]}
39. Bf3 {[%clk 00:04:12]} {[%emt 00:05:26]} Bd3 {[%clk 00:07:28]} {[%emt
00:01:57]} 40. Kd4 {[%clk 00:03:05]} {[%emt 00:01:36]} Kg7 {[%clk 00:05:59]}
{[%emt 00:02:00]} 41. Bh1 {[%clk 00:00:40]} {[%emt 00:02:55]} Rf1 {[%clk
00:02:30]} {[%emt 00:04:00]} 42. Bxd5 {[%clk 00:27:13]} {[%emt 00:03:57]} exd5
{[%clk 00:30:59]} {[%emt 00:02:01]} 43. Kxd5 {[%clk 00:26:29]} {[%emt
00:01:14]} Rh1 {[%clk 00:26:01]} {[%emt 00:05:28]} 44. e6 {[%clk 00:23:44]}
{[%emt 00:03:15]} Rxh4 {[%clk 00:20:59]} {[%emt 00:05:32]} 45. e7 {[%clk
00:23:30]} {[%emt 00:00:45]} Kf7 {[%clk 00:21:03]} {[%emt 00:00:26]} 46. Kd6
{[%clk 00:22:58]} {[%emt 00:01:01]} Rh8 {[%clk 00:17:16]} {[%emt 00:04:17]} 47.
Re5 {[%clk 00:22:43]} {[%emt 00:00:45]} Re8 {[%clk 00:11:23]} {[%emt 00:06:23]}
48. Re3 {[%clk 00:22:08]} {[%emt 00:01:04]} Ra8 {[%clk 00:09:15]} {[%emt
00:02:39]} 49. Rf3+ {[%clk 00:22:09]} {[%emt 00:00:28]} Kg8 {[%clk 00:09:38]}
{[%emt 00:00:07]} 50. Kd7 {[%clk 00:20:36]} {[%emt 00:02:03]} Ra7+ {[%clk
00:09:36]} {[%emt 00:00:32]} 51. Ke6 {[%clk 00:20:48]} {[%emt 00:00:18]} Ra8
{[%clk 00:09:45]} {[%emt 00:00:21]} 52. Re3 {[%clk 00:17:07]} {[%emt 00:04:11]}
g5 {[%clk 00:06:05]} {[%emt 00:04:10]} 53. Kd7 {[%clk 00:17:02]} {[%emt
00:00:35]} Ra7+ {[%clk 00:02:41]} {[%emt 00:03:54]} 54. Kc6 {[%clk 00:16:28]}
{[%emt 00:01:03]} Bg6 {[%clk 00:02:07]} {[%emt 00:01:05]} 55. e8=Q+ {[%clk
00:16:50]} {[%emt 00:00:08]} Bxe8+ {[%clk 00:02:35]} {[%emt 00:00:02]} 56.
Rxe8+ {[%clk 00:17:13]} {[%emt 00:00:07]} Kf7 {[%clk 00:03:01]} {[%emt
00:00:04]} 57. Re2 {[%clk 00:16:20]} {[%emt 00:01:23]} Kf6 {[%clk 00:01:08]}
{[%emt 00:02:24]} 58. Kb6 {[%clk 00:16:41]} {[%emt 00:00:09]} Ra8 {[%clk
00:00:55]} {[%emt 00:00:43]} 59. Kb7 {[%clk 00:16:39]} {[%emt 00:00:32]} Rd8
{[%clk 00:00:52]} {[%emt 00:00:33]} 60. Kxa6 {[%clk 00:16:06]} {[%emt
00:01:03]} 1-0

[Event "Top 12 Féminin 2026"]
[Site "Asnières-sur-Seine, France"]
[Date "2026.05.16"]
[Round "4.8"]
[White "Guerin, Juliette"]
[Black "Belluire, Beatrice"]
[Result "0-1"]
[TimeControl "1h30 / 40 moves + 30m + 30sec/move"]
[WhiteTitle "-"]
[BlackTitle "WFM"]
[WhiteFideId "-"]
[BlackFideId "-"]
[WhiteElo "1920"]
[BlackElo "2123"]

1. e4 {[%clk 01:30:58]} {[%emt 00:00:01]} e5 {[%clk 01:30:59]} {[%emt
00:00:02]} 2. Nf3 {[%clk 01:31:19]} {[%emt 00:00:08]} Nc6 {[%clk 01:31:23]}
{[%emt 00:00:06]} 3. Bc4 {[%clk 01:31:41]} {[%emt 00:00:08]} Nf6 {[%clk
01:31:49]} {[%emt 00:00:03]} 4. Ng5 {[%clk 01:32:04]} {[%emt 00:00:07]} d5
{[%clk 01:31:53]} {[%emt 00:00:26]} 5. exd5 {[%clk 01:32:26]} {[%emt 00:00:09]}
Na5 {[%clk 01:32:15]} {[%emt 00:00:08]} 6. Bb5+ {[%clk 01:32:50]} {[%emt
00:00:06]} c6 {[%clk 01:32:38]} {[%emt 00:00:06]} 7. dxc6 {[%clk 01:33:14]}
{[%emt 00:00:06]} bxc6 {[%clk 01:32:58]} {[%emt 00:00:10]} 8. Bd3 {[%clk
01:33:40]} {[%emt 00:00:05]} Nd5 {[%clk 01:32:53]} {[%emt 00:00:34]} 9. Nf3
{[%clk 01:33:58]} {[%emt 00:00:12]} Bd6 {[%clk 01:32:17]} {[%emt 00:01:05]} 10.
O-O {[%clk 01:33:51]} {[%emt 00:00:37]} Nf4 {[%clk 01:32:03]} {[%emt 00:00:44]}
11. Re1 {[%clk 01:33:46]} {[%emt 00:00:36]} Nxd3 {[%clk 01:32:24]} {[%emt
00:00:10]} 12. cxd3 {[%clk 01:34:09]} {[%emt 00:00:07]} O-O {[%clk 01:32:27]}
{[%emt 00:00:26]} 13. Nc3 {[%clk 01:20:31]} {[%emt 00:14:08]} Re8 {[%clk
01:26:23]} {[%emt 00:06:34]} 14. Ne4 {[%clk 01:20:36]} {[%emt 00:00:25]} Bc7
{[%clk 01:19:22]} {[%emt 00:07:31]} 15. Qe2 {[%clk 01:05:05]} {[%emt 00:16:02]}
f5 {[%clk 01:05:52]} {[%emt 00:14:00]} 16. Nc5 {[%clk 00:56:17]} {[%emt
00:09:18]} Qd6 {[%clk 01:02:38]} {[%emt 00:03:43]} 17. b4 {[%clk 00:48:37]}
{[%emt 00:08:11]} Nb7 {[%clk 01:02:23]} {[%emt 00:00:45]} 18. d4 {[%clk
00:47:45]} {[%emt 00:01:22]} e4 {[%clk 00:56:22]} {[%emt 00:06:31]} 19. g3
{[%clk 00:47:46]} {[%emt 00:00:29]} Nxc5 {[%clk 00:55:57]} {[%emt 00:00:55]} 20.
dxc5 {[%clk 00:47:10]} {[%emt 00:01:06]} Qf6 {[%clk 00:53:38]} {[%emt
00:02:48]} 21. Ba3 {[%clk 00:39:10]} {[%emt 00:08:31]} Be6 {[%clk 00:53:11]}
{[%emt 00:00:56]} 22. Nh4 {[%clk 00:39:09]} {[%emt 00:00:31]} Bd5 {[%clk
00:41:49]} {[%emt 00:11:52]} 23. Ng2 {[%clk 00:27:58]} {[%emt 00:11:41]} f4
{[%clk 00:38:18]} {[%emt 00:04:01]} 24. Nxf4 {[%clk 00:24:57]} {[%emt
00:03:31]} Bxf4 {[%clk 00:36:47]} {[%emt 00:02:01]} 25. gxf4 {[%clk 00:25:26]}
{[%emt 00:00:02]} Qg6+ {[%clk 00:25:09]} {[%emt 00:12:07]} 26. Kf1 {[%clk
00:25:39]} {[%emt 00:00:17]} Be6 {[%clk 00:25:10]} {[%emt 00:00:29]} 27. f5
{[%clk 00:22:44]} {[%emt 00:03:26]} Bxf5 {[%clk 00:23:00]} {[%emt 00:02:39]} 28.
Qe3 {[%clk 00:22:26]} {[%emt 00:00:48]} Qh5 {[%clk 00:21:17]} {[%emt 00:02:13]}
29. Qg3 {[%clk 00:17:37]} {[%emt 00:05:19]} Bh3+ {[%clk 00:20:48]} {[%emt
00:01:00]} 30. Kg1 {[%clk 00:18:05]} {[%emt 00:00:01]} Re5 {[%clk 00:09:36]}
{[%emt 00:11:42]} 31. Kh1 {[%clk 00:17:57]} {[%emt 00:00:38]} Bg4 {[%clk
00:05:59]} {[%emt 00:04:07]} 32. h4 {[%clk 00:15:16]} {[%emt 00:03:11]} Bf3+
{[%clk 00:06:07]} {[%emt 00:00:22]} 33. Kh2 {[%clk 00:14:42]} {[%emt 00:01:04]}
Re6 {[%clk 00:03:36]} {[%emt 00:03:02]} 34. Qg5 {[%clk 00:07:00]} {[%emt
00:08:11]} Qf7 {[%clk 00:04:04]} {[%emt 00:00:02]} 35. Rg1 {[%clk 00:06:47]}
{[%emt 00:00:43]} Rg6 {[%clk 00:03:59]} {[%emt 00:00:35]} 36. Qe3 {[%clk
00:00:39]} {[%emt 00:06:38]} Qf6 {[%clk 00:03:46]} {[%emt 00:00:44]} 37. Rg5
{[%clk 00:00:38]} {[%emt 00:00:31]} Rxg5 {[%clk 00:03:04]} {[%emt 00:01:11]}
0-1

[Event "Top 12 Féminin 2026"]
[Site "Asnières-sur-Seine, France"]
[Date "2026.05.16"]
[Round "4.9"]
[White "Gaal, Zsoka"]
[Black "Osmak, Yuliaa"]
[Result "1/2-1/2"]
[TimeControl "1h30 / 40 moves + 30m + 30sec/move"]
[WhiteTitle "IM"]
[BlackTitle "IM"]
[WhiteFideId "-"]
[BlackFideId "14101602"]
[WhiteElo "2374"]
[BlackElo "2451"]

1. d4 {[%clk 01:30:55]} {[%emt 00:00:04]} Nf6 {[%clk 01:27:33]} {[%emt
00:03:27]} 2. c4 {[%clk 01:31:11]} {[%emt 00:00:14]} e6 {[%clk 01:27:44]}
{[%emt 00:00:21]} 3. Nf3 {[%clk 01:31:32]} {[%emt 00:00:08]} d5 {[%clk
01:28:04]} {[%emt 00:00:10]} 4. Nc3 {[%clk 01:31:54]} {[%emt 00:00:07]} Be7
{[%clk 01:27:46]} {[%emt 00:00:48]} 5. Bf4 {[%clk 01:32:14]} {[%emt 00:00:10]}
O-O {[%clk 01:27:45]} {[%emt 00:00:32]} 6. e3 {[%clk 01:32:34]} {[%emt
00:00:11]} Nbd7 {[%clk 01:27:34]} {[%emt 00:00:41]} 7. Be2 {[%clk 01:32:25]}
{[%emt 00:00:38]} dxc4 {[%clk 01:22:17]} {[%emt 00:05:48]} 8. O-O {[%clk
01:32:30]} {[%emt 00:00:22]} c5 {[%clk 01:20:50]} {[%emt 00:02:00]} 9. dxc5
{[%clk 01:29:03]} {[%emt 00:03:57]} Nxc5 {[%clk 01:09:09]} {[%emt 00:12:11]} 10.
Bxc4 {[%clk 01:28:51]} {[%emt 00:00:41]} a6 {[%clk 01:09:06]} {[%emt 00:00:34]}
11. Qc2 {[%clk 01:11:51]} {[%emt 00:17:30]} b5 {[%clk 01:07:21]} {[%emt
00:02:16]} 12. Be2 {[%clk 01:09:25]} {[%emt 00:02:55]} Bb7 {[%clk 01:06:14]}
{[%emt 00:01:38]} 13. Rfd1 {[%clk 01:05:17]} {[%emt 00:04:37]} Qb6 {[%clk
01:04:25]} {[%emt 00:02:19]} 14. Be5 {[%clk 01:04:43]} {[%emt 00:01:04]} Rac8
{[%clk 01:00:10]} {[%emt 00:04:45]} 15. Bd4 {[%clk 00:58:11]} {[%emt 00:07:02]}
Qc6 {[%clk 00:57:03]} {[%emt 00:03:34]} 16. Rac1 {[%clk 00:54:24]} {[%emt
00:04:21]} h6 {[%clk 00:35:02]} {[%emt 00:22:31]} 17. Ne1 {[%clk 00:46:02]}
{[%emt 00:08:51]} Qc7 {[%clk 00:27:44]} {[%emt 00:07:48]} 18. Bf3 {[%clk
00:38:03]} {[%emt 00:08:29]} Qb8 {[%clk 00:27:19]} {[%emt 00:00:55]} 19. Qe2
{[%clk 00:36:43]} {[%emt 00:01:50]} b4 {[%clk 00:21:43]} {[%emt 00:06:06]} 20.
Bxb7 {[%clk 00:28:19]} {[%emt 00:08:54]} Qxb7 {[%clk 00:22:04]} {[%emt
00:00:09]} 21. Nb1 {[%clk 00:28:42]} {[%emt 00:00:07]} Ncd7 {[%clk 00:16:58]}
{[%emt 00:05:36]} 22. Nf3 {[%clk 00:25:50]} {[%emt 00:03:21]} Qb5 {[%clk
00:10:23]} {[%emt 00:07:06]} 23. Qxb5 {[%clk 00:24:36]} {[%emt 00:01:44]} axb5
{[%clk 00:10:49]} {[%emt 00:00:04]} 24. Nbd2 {[%clk 00:24:41]} {[%emt
00:00:25]} Rxc1 {[%clk 00:07:53]} {[%emt 00:03:26]} 25. Rxc1 {[%clk 00:25:05]}
{[%emt 00:00:06]} Ra8 {[%clk 00:08:20]} {[%emt 00:00:02]} 26. Rc7 {[%clk
00:21:48]} {[%emt 00:03:46]} Bd6 {[%clk 00:07:43]} {[%emt 00:01:07]} 27. Rc6
{[%clk 00:19:38]} {[%emt 00:02:41]} Bf8 {[%clk 00:07:42]} {[%emt 00:00:30]} 28.
e4 {[%clk 00:17:00]} {[%emt 00:03:09]} Rxa2 {[%clk 00:07:05]} {[%emt 00:01:08]}
29. Kf1 {[%clk 00:17:23]} {[%emt 00:00:06]} Ra8 {[%clk 00:03:44]} {[%emt
00:03:51]} 30. Ke2 {[%clk 00:17:13]} {[%emt 00:00:40]} g5 {[%clk 00:03:29]}
{[%emt 00:00:45]} 31. h3 {[%clk 00:15:02]} {[%emt 00:02:41]} Rb8 {[%clk
00:02:02]} {[%emt 00:01:58]} 32. Rc7 {[%clk 00:14:17]} {[%emt 00:01:15]} Bd6
{[%clk 00:01:37]} {[%emt 00:00:54]} 33. Ra7 {[%clk 00:14:03]} {[%emt 00:00:44]}
Bc5 {[%clk 00:01:43]} {[%emt 00:00:24]} 34. Bxc5 {[%clk 00:14:25]} {[%emt
00:00:08]} Nxc5 {[%clk 00:02:07]} {[%emt 00:00:06]} 35. Ne5 {[%clk 00:13:16]}
{[%emt 00:01:39]} Rf8 {[%clk 00:00:38]} {[%emt 00:01:59]} 36. Ke3 {[%clk
00:11:31]} {[%emt 00:02:15]} Na4 {[%clk 00:00:38]} {[%emt 00:00:30]} 37. Nd3
{[%clk 00:11:07]} {[%emt 00:00:53]} Rc8 {[%clk 00:00:41]} {[%emt 00:00:27]} 38.
Rb7 {[%clk 00:09:14]} {[%emt 00:02:24]} Rc2 {[%clk 00:00:54]} {[%emt 00:00:17]}
39. b3 {[%clk 00:04:39]} {[%emt 00:05:05]} Nc3 {[%clk 00:00:45]} {[%emt
00:00:39]} 40. Ne5 {[%clk 00:05:04]} {[%emt 00:00:05]} Nd1+ {[%clk 00:00:37]}
{[%emt 00:00:38]} 41. Kd3 {[%clk 00:02:16]} {[%emt 00:03:18]} Rb2 {[%clk
00:24:46]} {[%emt 00:06:21]} 42. Nxf7 {[%clk 00:25:07]} {[%emt 00:07:39]} Nxf2+
{[%clk 00:24:46]} {[%emt 00:00:30]} 43. Ke3 {[%clk 00:25:29]} {[%emt 00:00:06]}
Nd1+ {[%clk 00:24:49]} {[%emt 00:00:28]} 44. Kd3 {[%clk 00:25:29]} {[%emt
00:00:30]} Nf2+ {[%clk 00:14:37]} {[%emt 00:10:43]} 45. Ke3 {[%clk 00:25:51]}
{[%emt 00:00:08]} Nd1+ {[%clk 00:13:55]} {[%emt 00:01:12]} 46. Kd3 {[%clk
00:26:13]} {[%emt 00:00:07]} Nf2+ {[%clk 00:12:28]} {[%emt 00:01:57]} 1/2-1/2